Cogmind - Beta 16.1 @@@ ROGUE MODE // 2026.02.20 @ 00:01:53 Player: Puck Result: Destroyed by MW-PVM(R) with Subdweller Machine Gun Performance ------------- Evolutions (0) 0 Regions Visited (2) 400 Robots Destroyed (21) 105 Value Destroyed (524) 524 Prototype IDs (0) 0 Alien Tech Used (0) 0 Bonus (0) 0 TOTAL SCORE: 1029 Bonus ------- None Cogmind --------- Core Integrity 0/250 Matter 247/300 Energy 50/100 System Corruption 0% Temperature Cool (1) Movement Treading (320) Ox2 Location -10/Subcaves Parts ------- > --- POWER (1) -------- (None) > --- PROPULSION (2) --- Light Treads Aluminum Leg > --- UTILITY (2) ------ High-capacity Storage Unit Light Armor Plating > --- WEAPON (2) ------- Beam Cannon Subdweller Machine Gun > --- INVENTORY (20) --- Ion Engine Compact Wheel Seismic Detector Light Armor Plating Light Armor Plating Light Armor Plating Light Armor Plating Light Armor Plating Medium Armor Plating Medium Armor Plating Hacking Suite EM Pulse Gun Subdweller Beam Cannon Light Assault Rifle Light Assault Rifle Maul Peak State ------------ > --- POWER ------------ Ion Engine > --- PROPULSION ------- Light Treads Light Treads > --- UTILITY ---------- High-capacity Storage Unit Medium Armor Plating > --- WEAPON ----------- Beam Cannon Assault Rifle > --- INVENTORY -------- Ion Engine Aluminum Leg Aluminum Leg Compact Wheel Seismic Detector Light Armor Plating Light Armor Plating Light Armor Plating Light Armor Plating Light Armor Plating Light Armor Plating Light Armor Plating Medium Armor Plating Medium Armor Plating EM Pulse Gun EM Pulse Gun Maul [Rating: 10] Favorites ----------- Power Ion Engine Engine Ion Engine Propulsion Light Treads Treads Light Treads Leg Aluminum Leg Utility High-capacity Storage Unit Storage High-capacity Storage Unit Protection Medium Armor Plating Weapon Assault Rifle Energy Gun EM Pulse Gun Energy Cannon Beam Cannon Ballistic Gun Assault Rifle Build | -11 -10 -10 ------- Run | Yrd Mat Sub Slots Evolved . | . . . Power . | . . . Propulsion . | . . . Utility . | . . . Weapon . | . . . Parts Attached 16 | 6 5 5 Power 1 | 1 . . Engine 1 | 1 . . Core . | . . . Reactor . | . . . Propulsion 5 | 2 . 3 Treads 2 | 2 . . Leg 3 | . . 3 Wheel . | . . . Hover . | . . . Flight . | . . . Utility 6 | 1 4 1 Device . | . . . Storage 2 | 1 1 . Processor . | . . . Hackware . | . . . Protection 4 | . 3 1 Artifact . | . . . Weapon 4 | 2 1 1 Energy Gun 1 | 1 . . Energy Cannon 1 | . 1 . Ballistic Gun 2 | 1 . 1 Ballistic Cannon . | . . . Launcher . | . . . Special Weapon . | . . . Impact Weapon . | . . . Slashing Weapon . | . . . Piercing Weapon . | . . . Special Melee Weapon . | . . . Unidentified Prototypes . | . . . Parts Lost 7 | . 1 6 Power 1 | . . 1 Propulsion 3 | . . 3 Utility 2 | . 1 1 Weapon 1 | . . 1 Highest Loss Streak 6 | . 1 6 To Critical Strikes . | . . . Average Backups 16 | 1 17 19 Power . | . 1 1 Propulsion 3 | . 3 3 Utility 9 | . 9 9 Weapon 3 | . 3 4 Tool/Special . | . . . Unused Backups 16 | . 1 15 Power 1 | . . 1 Propulsion 1 | . . 1 Utility 9 | . 1 8 Weapon 5 | . . 5 Tool/Special . | . . . Average Slot Usage (%) 99 | . 99 97 Engine 13 | . 14 12 Treads 27 | . 28 22 Storage 14 | . 14 14 Protection 13 | . 13 14 Energy Gun 2 | . 2 . Energy Cannon 11 | . 11 14 Ballistic Gun 13 | . 14 13 Peak Build Rating 10 | 6 10 10 Average Rating 9 | 4 9 9 On Entrance 5 | . 6 10 Avg Prop Armor Cover (%) . | . . . Naked Turns . | . . . Heaviest Build 57 | 14 57 57 Greatest Support 40 | 40 40 40 Greatest Overweight (x) 2 | . 1 2 Average Overweight (x) . | . . 1 Largest Inventory Capacity 20 | 8 20 20 Average Capacity 19 | 6 19 20 Most Carried 20 | 2 20 20 Average Carried 16 | 1 17 19 Final Capacity 20 | 8 20 20 Final Carried 19 | 2 19 16 Class Distribution -------------------- 100% | Mutant Dominant Class ---------------- Mutant | -10/Materials Mutant | -10/Subcaves Resources | -11 -10 -10 ----------- Run | Yrd Mat Sub Matter Collected 431 | 184 247 . Remotely . | . . . Salvage Created 705 | . 611 94 Parts 42 | . 40 2 Haulers Intercepted 1 | . 1 . Recyclers Shooed 1 | . 1 . Parts Field Recycled . | . . . Retrieved Matter . | . . . Parts Self-Destructed 5 | . . 5 Prevented . | . . . Parts Restored . | . . . Kills | -11 -10 -10 ------- Run | Yrd Mat Sub Combat Hostiles Destroyed 16 | . 14 2 Guns 8 | . 8 . Cannons 8 | . 6 2 Classes Destroyed 7 | . 6 1 Hauler 1 | . 1 . Recycler 1 | . 1 . Operator 1 | . 1 . Watcher 2 | . 2 . Swarmer 6 | . 6 . Grunt 8 | . 8 . Subdweller 2 | . . 2 Best Kill Streak 3 | . 3 2 Combat Bots Only 3 | . 3 2 Max Kills in Single Turn 1 | . 1 1 Gunslinging . | . . . Exploded . | . . . Melee . | . . . Uniques/NPCs Destroyed . | . . . Combat | -11 -10 -10 -------- Run | Yrd Mat Sub Hostile Shots Fired 107 | . 60 47 Missed 30 | . 15 15 Hits 77 | . 45 32 Projectile 77 | . 45 32 Critical Strikes 2 | . 1 1 Damage Taken 1195 | . 529 666 Core 264 | . 125 139 Absorbed by Shields . | . . . Core Remaining (%) 100 | 100 . . Volleys Fired 54 | . 43 11 Largest 2 | . 2 2 Hottest 80 | . 80 80 Shots Fired 103 | . 86 17 Gun 58 | . 52 6 Cannon 45 | . 34 11 Launcher . | . . . Special . | . . . Kinetic 49 | . 43 6 Thermal 45 | . 34 11 Explosive . | . . . Electromagnetic 9 | . 9 . Robot Hit Streak 13 | . 13 11 Robot Miss Streak 6 | . 6 1 Penetration Max . | . . . Secondary Targets . | . . . Shots Hit Robots 65 | . 51 14 Core Hits 32 | . 28 4 Critical Kills . | . . . Critical Parts Destroyed . | . . . Critical Strikes . | . . . Melee Attacks . | . . . Impact . | . . . Slashing . | . . . Piercing . | . . . Sneak Attacks . | . . . Combat Hostiles . | . . . Follow-up Attacks . | . . . Damage Inflicted 932 | . 750 182 Guns 475 | . 434 41 Cannons 457 | . 316 141 Explosions . | . . . Melee . | . . . Ramming . | . . . Kinetic 375 | . 334 41 Thermal 457 | . 316 141 Explosive . | . . . Electromagnetic 100 | . 100 . Impact . | . . . Slashing . | . . . Piercing . | . . . Highest Corruption . | . . . Average Corruption . | . . . Corruption Purged . | . . . Corruption Blocked . | . . . Overload Shots . | . . . Overflow Damage . | . . . Projectiles . | . . . Explosions . | . . . Melee . | . . . Knockbacks . | . . . Impact . | . . . Kinetic . | . . . Secondary . | . . . Self-Inflicted Damage . | . . . Shots . | . . . Rammed 1 | . 1 . Targets Rammed 1 | . 1 . Kicked . | . . . Crushed . | . . . Highest Temperature 280 | . 204 280 Average Temperature 61 | . 54 142 Received Heat Transfer 470 | . 162 308 Siege Activations . | . . . Martial Activations . | . . . Shielding Activations . | . . . Robots Disrupted . | . . . Combat Hostiles . | . . . Robots Corrupted . | . . . Combat Hostiles . | . . . Parts Fried . | . . . Impact Corruptions . | . . . Robots Melted . | . . . Combat Hostiles . | . . . Parts Melted . | . . . Heat Transferred 962 | . 666 296 Parts Sabotaged . | . . . Parts Stolen . | . . . Parts Stripped . | . . . Power Chain Reactions . | . . . Alert | -11 -10 -10 ------- Run | Yrd Mat Sub Maximum Alert Level . | . . . Low Security (%) 100 | 100 100 . Level 1 . | . . . Level 2 . | . . . Level 3 . | . . . Level 4 . | . . . Level 5 . | . . . High Security . | . . . Max Security . | . . . Peak Influence 114 | . 114 . Initial . | . . . Average 35 | . 36 . Influence Increases 470 | . 470 . Destroy 0b10 Robot/C 280 | . 280 . Destroy 0b10 Robot/NC 25 | . 25 . Destroy Leader 66 | . 66 . Successful Hack 6 | . 6 . Disable Machine 45 | . 45 . Destroy Structure 3 | . 3 . Lose Combat Pursuer 45 | . 45 . Influence Decreases 470 | . 417 53 Entered New Map 26 | . . 26 Time Decay 434 | . 407 27 Lost Part 10 | . 10 . Squads Dispatched 2 | . 2 . Investigation 1 | . 1 . Extermination . | . . . Reinforcement 1 | . 1 . Assault . | . . . Garrison . | . . . Intercept . | . . . Searches Triggered . | . . . Construction Impeded . | . . . Haulers Reinforced . | . . . Active Scanning Responses . | . . . Cargo Convoy Interrupts . | . . . Stealth | -11 -10 -10 --------- Run | Yrd Mat Sub Distress Signals . | . . . Communications Jammed . | . . . Distress Signals . | . . . Times Spotted 32 | . 24 8 Peak Tracking Total 7 | . 4 7 Tactical Retreats 2 | . 2 . Traps | -11 -10 -10 ------- Run | Yrd Mat Sub Traps Triggered . | . . . Indirectly . | . . . Trap Hack Attempts . | . . . Triggered . | . . . Disarmed . | . . . Reprogrammed . | . . . Reused . | . . . Traps Extracted . | . . . Installed . | . . . Triggered . | . . . Machines | -11 -10 -10 ---------- Run | Yrd Mat Sub Machines Disabled 3 | . 3 . Max in Single Turn 1 | . 1 . Machines Repaired . | . . . Machines Dismantled . | . . . Machines Sabotaged . | . . . Overloaded Fab Kills . | . . . Hacking | -11 -10 -10 --------- Run | Yrd Mat Sub Machines Accessed 3 | . 3 . Terminals 2 | . 2 . Fabricators . | . . . Repair Stations . | . . . Recycling Units 1 | . 1 . Scanalyzers . | . . . Garrison Access . | . . . Total Hacks 6 | . 6 . Successful 3 | . 3 . Failed 3 | . 3 . Catastrophic . | . . . Database Lockouts . | . . . Manual 5 | . 5 . Terminals 5 | . 5 . Fabricators . | . . . Repair Stations . | . . . Recycling Units 1 | . 1 . Scanalyzers . | . . . Garrison Access . | . . . Terminal Hacks 2 | . 2 . Robot Analysis 1 | . 1 . Zone Layout 1 | . 1 . Fabricator Hacks . | . . . Repair Station Hacks . | . . . Recycling Unit Hacks 1 | . 1 . Retrieve Components 1 | . 1 . Scanalyzer . | . . . Garrison Access Hacks . | . . . Unauthorized Hacks . | . . . Terminals . | . . . Fabricators . | . . . Repair Stations . | . . . Recycling Units . | . . . Scanalyzers . | . . . Garrison Access . | . . . Data Cores Recovered 1 | . 1 . Used . | . . . Hacking Detections 2 | . 2 . Full Trace Events . | . . . Feedback Events . | . . . Feedback Blocked . | . . . Robot Schematics Acquired . | . . . Robots Built . | . . . Authchips . | . . . Time . | . . . Total Robot Build Rating . | . . . Part Schematics Acquired . | . . . Parts Built . | . . . Authchips . | . . . Time . | . . . Total Part Build Rating . | . . . Part Studies Acquired . | . . . Parts Repaired . | . . . Time . | . . . Parts Recycled . | . . . Recycled Matter . | . . . Retrieved Matter . | . . . Retrieved Components 7 | . 7 . Parts Scanalyzed . | . . . Part Schematics Acquired . | . . . Parts Damaged . | . . . Bothacking | -11 -10 -10 ------------ Run | Yrd Mat Sub Used RIF Installer . | . . . Robots Hacked . | . . . Non-combat . | . . . Combat . | . . . Robot Hacks Applied . | . . . Relay Couplers Released . | . . . Fabnet Peak Effective % . | . . . Robots Rewired . | . . . Allies Hacked . | . . . Hacks Repelled . | . . . Allies | -11 -10 -10 -------- Run | Yrd Mat Sub Total Allies . | . . . Largest Group . | . . . Highest-Rated Group . | . . . Highest-Rated Ally . | . . . Total Orders . | . . . Ally Attacks . | . . . Total Damage . | . . . Kills . | . . . Allies Corrupted . | . . . Allies Melted . | . . . Intel | -11 -10 -10 ------- Run | Yrd Mat Sub Active Infowar (turns) . | . . . Robot Analysis Total 1 | . 1 . Derelict Logs Recovered . | . . . Drone Launches . | . . . Drone Recoveries . | . . . Exploration | -11 -10 -10 ------------- Run | Yrd Mat Sub Turns Passed 2798 | 71 2509 218 Spaces Moved 1010 | 40 897 73 Core 3 | 3 . . Treads 999 | 37 897 65 Legs 8 | . . 8 Wheels . | . . . Hover . | . . . Flight . | . . . Fastest Speed 50 | 50 160 240 Average Speed 233 | 151 236 242 Slowest Speed 260 | 160 240 260 Overloaded Moves . | . . . Propulsion Burnouts . | . . . Robots Hopped . | . . . Potential Cave-ins . | . . . Cave-ins Triggered . | . . . Exploration Rate (%) 35 | 3 94 8 Regions Visited 2 Branch Regions 1 Pre-discovered Areas . | . . . Known Exits Taken . | . . . Unknown Exits Taken 2 | 1 1 . Scrap Searched . | . . . Spaces Dug . | . . . Terrain Destroyed . | . . . Melee . | . . . Projectile . | . . . AOE . | . . . Terrain Rammed . | . . . Walls Destroyed . | . . . Machines Disabled . | . . . Actions | -11 -10 -10 --------- Run | Yrd Mat Sub Total 1340 | 48 1196 96 Wait 231 | . 227 4 Move 1008 | 39 896 73 Hop . | . . . Pick Up 25 | 3 20 2 Fast Attach 6 | 5 1 . Attach 7 | 1 1 5 Detach . | . . . Swap 4 | . 3 1 Drop 4 | . 4 . Fire 54 | . 43 11 Melee . | . . . Ram . | . . . Kick . | . . . Crush 1 | . 1 . Escape Stasis . | . . . Rewire . | . . . Trap . | . . . Miscellaneous . | . . . Route ------- -11/Scrapyard -10/Materials (discovered 6 exits: [*Mat x3] / [*Min x2] / [*Sub]) -10/Subcaves History --------- Turn | Location | Event 26 | -11/Scrapyard | Discovered new exit (range 15) 72 | -11/Scrapyard | Entered Materials 312 | -10/Materials | Build established: Mutant 772 | -10/Materials | Derelicts attacked the area 818 | -10/Materials | Discovered new exit (range 7) 1164 | -10/Materials | Discovered new exit (range 9) 1451 | -10/Materials | Discovered new exit (range 5) 1856 | -10/Materials | Discovered new exit (range 10) 2291 | -10/Materials | Discovered new exit (range 15) 2562 | -10/Materials | Discovered new exit (range 7) 2581 | -10/Materials | Entered Subcaves 2582 | -10/Subcaves | Approached by a straggling Scientist 2737 | -10/Subcaves | Ambushed by Subdwellers from Twisted Machinery 2737 | -10/Subcaves | Ambushed by swarm of Subdwellers 2744 | -10/Subcaves | Core integrity fell below 50% 2784 | -10/Subcaves | Core integrity fell below 20% 2794 | -10/Subcaves | Lost 5 allies 2799 | -10/Subcaves | Destroyed by MW-PVM(R) with Subdweller Machine Gun Last Messages --------------- 02737_ 6Q-850(h): "The Subs are coming!" 02737_ K4-7FW(R) suffers critical hit (Burn). 02738_ K4-7FW(R) suffers critical hit (Destroy). 02738_ K4-7FW(R) knocked back. 02739_ B2-1P0(R) emerges from the Twisted Machinery. 02740_ H3-TX6(R) emerges from the Twisted Machinery. 02741_ HV Slug penetrates K4-7FW(R). 02741_ Lgt. Treads destroyed. 02742_ 2O-BH6(c) destroyed. 02744_ 6Q-850(h) destroyed. 02760_ Aluminum Leg destroyed. 02764_ Ion Engine destroyed. 02776_ FJ-74R(R) destroyed. 02781_ Aluminum Leg destroyed. 02784_ Med. Armor Plating destroyed. 02784_ Critical hit (Meltdown: +290). 02785_ Assault Rifle destroyed. 02789_ K4-7FW(R) destroyed. 02792_ B2-1P0(R) affixes Scrap Shield Fragment to Scrap Shield. 02797_ Acquired Sub. Machine Gun. Map ----- +----------------------------------------------------+ | ?????????????????????????????????????????? | | ?????????????????????????????????????????? | | ?????????????????????????????????????????? | | ?????????????????????????????????????????? | | ?????????????????????????????????????????? | | ?????????????????????????????????????????? | | ?????????????????????????????????????????? | | ?????????????????????????????????????????? | | ?????????????????????????????????????????? | | ???????????????????? ????????????????????? | | ???????????????????? ????????????????????? | | ?????????????" ##? ???????????????????? | | ?????????????? "" "" ???????????????????? | | ??????????????? "? ???????????????????? | | ???????????????? "" #####??????????????? | | ????????????????? "" #??????????????? | | ?????????????????? "" #??????????????? | | ??????????????????? "" #??????????????? | | ???????????????????# "" #??????????????? | | ???????????????????# "" #??????????????? | | ??????????????????## #??????????????? | | ??????????????????# #??????????????? | | ??????????????????# #??????????????? | | ?????????????????## ### ##?????????????? | | ?????????????????# ####RR#?????????????? | | ?????????????????# ### ;@ #?????????????? | | ?????????????????# ### ####?????????????? | | ?????????????????##] ##??????????????????? | | ?????????????????##%= #####??????????????? | | ?????????????###?# [*" #??????????????? | | ????????????## ## %% % #??????????????? | | ????????????# % # ###%##??????????????? | | ????????????# %#???????????????? | | ????????????# #???????????????? | | ????? ## #???????????????? | | ????? # #??#???????????????? | | ????? ## ##??????????????????? | | ?????? ### ## #??????????????????? | | ?????????## ?## #??????????????????? | | ??????????##% ???# ##?????????????????? | | ???????????## ??## ##????????????????? | | ????????????## ## ##???????????????? | | ???????????????# #???????????????? | | ????????####???### #???????????????? | | ????????# ##???### #???????????????? | | ?????????# ##??## #???????????????? | | ????????## ??# #???????????????? | | ??? ### #??# ###???????????????? | | ?? #### ##????????????????? | | ????? ## #????????????????? | +----------------------------------------------------+ Best States ------------- Heat Dissipation 25 Energy Generation 10 Energy Capacity 250 Matter Stores 300 Matter Capacity 300 Sight Range 16 Terrain Scan Density 10 Armor Coverage 225 Evasion (%) 40 Recoil Reduction 2 Item Schematics ----------------- None Robot Schematics ------------------ None Fabricated ------------ Nothing Repaired ---------- Nothing Studied --------- None Alien Tech Used ----------------- None Achievements -------------- None Challenges ------------ None Game ------ Seed ShieldBeamTether Manual? 0 Play Time 00:15:02 Cumulative 274.5 hours Start 2026.02.19 @ 21:36:51 End 2026.02.20 @ 00:01:53 Sessions 3 Manual Loads 0 Difficulty Rogue Special Mode None Game No. 131 Rogue 91 Adventurer 29 Explorer 11 Win Type - Total 12 Types 7/0/1/2/0/0/1/0/1/0 Lore% 50 Gallery% 63 Achievement% 43 Wizard Run 0 Options --------- Layout 0 ASCII 0 Keyboard 0 Movement Numpad Keybinds 0 Fullscreen 2 Font 24/Smallcaps Map View 113x50 Zoom Use 0% Tactical HUD 1 Map Filters NONE Filters LOW_CONTRAST(13,24,33) Steam 1 RUN: dabf39c3-d5cf-4566-9e0d-b4c857aaf35e